bitfinex/quotes_SOLUSD_20250710
["timestamp","ask_amount","ask_price","bid_price","bid_amount"]
[1752190957258,0.66,163.45,163.42,37.05406263]
[1752190958049,0.66,163.45,163.42,31.66]
[1752190958473,0.66,163.44,163.42,31.66]
[1752190960272,0.66,163.45,163.42,37.05406263]
[1752190960785,0.66,163.44,163.42,37.05406263]
[1752190961463,0.66,163.44,163.42,126.02406263]
[1752190961662,5.42406263,163.46,163.42,126.02406263]
[1752190961985,0.66,163.45,163.42,126.02406263]
[1752190963088,0.66,163.45,163.42,120.63]
[1752190963280,5.42406263,163.46,163.42,120.63]
[1752190963587,0.66,163.44,163.42,126.02406263]
[1752190964568,0.66,163.44,163.42,120.63]
[1752190967196,0.66,163.43,163.42,120.63]
[1752190967487,0.66,163.44,163.42,120.63]
[1752190968370,0.03,163.46,163.43,0.6]
[1752190968573,6.08406263,163.46,163.42,126.62406263]
[1752190968886,0.66,163.45,163.42,121.23]
[1752190969083,0.66,163.45,163.42,120.63]
[1752190970396,0.66,163.45,163.42,121.23]
[1752190970686,6.08406263,163.46,163.42,126.62406263]
[1752190970988,0.69,163.46,163.42,126.62406263]
[1752190972591,0.03,163.46,163.43,0.6]
[1752190972898,0.03,163.46,163.44,37.03406263]
[1752190973395,0.03,163.46,163.45,5.99406263]
[1752190973887,0.03,163.46,163.45,13.00827258]
[1752190974564,0.03,163.47,163.45,13.00827258]
[1752190974770,0.03,163.47,163.46,63.63406263]
[1752190975761,0.03,163.47,163.46,69.75176726]
[1752190980884,0.03,163.47,163.46,70.0360904]
[1752190982075,0.03,163.47,163.46,44.0360904]
[1752190984590,0.2,163.5,163.46,44.0360904]
[1752190984787,0.2,163.5,163.49,31.39406263]
[1752190984990,0.2,163.5,163.49,63.01406263]
[1752190985302,0.2,163.5,163.49,152.01406263]
[1752190986996,0.2,163.5,163.49,146.62]
[1752190987205,0.2,163.5,163.49,152.01406263]
[1752190988203,0.2,163.5,163.49,151.99406263]
[1752190988712,0.9,163.5,163.49,146.6]
[1752190988909,0.9,163.5,163.49,115.0]
[1752190991903,0.2,163.5,163.49,120.39406263]
[1752190992113,0.9,163.5,163.49,115.0]
[1752190998006,0.9,163.5,163.41,0.06]
[1752190998007,16.78468397,163.49,163.41,0.06]
[1752190998196,3.44529085,163.46,163.41,3.50529085]
[1752190998392,3.44529085,163.46,163.42,57.58]
[1752190998598,0.7,163.45,163.42,61.02529085]
[1752190998901,0.7,163.45,163.43,3.44529085]
[1752191000307,0.7,163.47,163.43,0.6]
[1752191000509,0.7,163.46,163.44,35.02529085]
[1752191000887,0.7,163.46,163.44,36.96639801]
[1752191001709,0.7,163.46,163.44,31.58]
[1752191001913,0.7,163.45,163.44,31.58]
[1752191004006,0.7,163.45,163.43,120.58]
[1752191004201,0.7,163.45,163.43,125.96639801]
[1752191004405,0.66,163.46,163.43,120.58]
[1752191004608,0.66,163.46,163.43,125.96639801]
[1752191005008,0.66,163.46,163.43,120.58]
[1752191005316,0.66,163.46,163.43,125.96639801]
[1752191005911,0.66,163.45,163.43,120.58]
[1752191006218,0.66,163.45,163.43,125.96639801]
[1752191006715,0.66,163.45,163.43,120.58]
[1752191007012,0.66,163.45,163.43,125.96639801]
[1752191008618,0.66,163.44,163.43,89.0]
[1752191008795,6.04639801,163.44,163.42,115.0]
[1752191008994,0.66,163.43,163.42,115.0]
[1752191009411,5.38639801,163.45,163.42,115.0]
[1752191010299,5.38639801,163.45,163.41,31.64]
[1752191010300,5.38639801,163.43,163.41,0.06]
[1752191011419,0.66,163.42,163.41,0.06]
[1752191015202,6.04639801,163.42,163.41,0.06]
[1752191021739,0.66,163.42,163.41,0.06]
[1752191022039,6.04639801,163.42,163.41,0.06]
[1752191024350,22.83108198,163.42,163.41,0.06]
[1752191024637,29.37676874,163.42,163.41,0.06]
[1752191024823,0.42648471,163.4,163.38,0.06]
[1752191025023,29.58410337,163.39,163.38,0.06]
[1752191025431,23.46377777,163.39,163.38,0.06]
[1752191028030,6.04639801,163.39,163.38,0.06]
[1752191031432,24.68088397,163.42,163.38,0.06]
[1752191031433,5.38639801,163.42,163.38,6.10639801]
[1752191031640,0.66,163.43,163.39,6.04639801]
[1752191031828,0.66,163.44,163.4,0.66]
[1752191032033,0.71,163.43,163.4,0.66]
[1752191032543,6.09639801,163.43,163.39,5.38639801]
[1752191032735,6.09639801,163.43,163.39,6.05639801]
[1752191033150,0.71,163.42,163.39,6.05639801]
[1752191033829,0.71,163.42,163.39,0.67]
[1752191034030,0.71,163.42,163.39,6.05639801]
[1752191034227,5.38639801,163.4,163.38,89.06]
[1752191034449,5.38639801,163.39,163.38,0.06]
[1752191034637,6.09639801,163.4,163.38,0.06]
[1752191035333,0.71,163.4,163.38,0.06]
[1752191035852,0.71,163.42,163.38,0.06]
[1752191036040,32.08053422,163.45,163.39,6.05639801]
[1752191036242,5.38639801,163.42,163.38,94.44639801]
[1752191036439,6.09639801,163.41,163.38,89.06]
[1752191036638,5.38639801,163.41,163.38,0.06]
[1752191036870,0.71,163.4,163.38,0.06]
[1752191037240,5.38639801,163.43,163.39,0.67]
[1752191037449,6.09639801,163.43,163.39,0.67]
[1752191037932,0.71,163.42,163.39,0.67]
[1752191038859,6.09639801,163.41,163.38,0.06]
[1752191039052,0.71,163.4,163.38,0.06]
[1752191039864,5.38639801,163.42,163.38,0.06]
[1752191040046,6.09639801,163.42,163.38,0.73]
[1752191040369,6.09639801,163.42,163.39,0.67]
[1752191040573,6.09639801,163.42,163.38,0.73]
[1752191040754,5.38639801,163.42,163.38,0.73]
[1752191040954,0.71,163.41,163.38,0.73]
[1752191041449,6.09639801,163.42,163.38,0.73]
[1752191041672,6.09639801,163.42,163.38,89.73]
[1752191041868,6.09639801,163.41,163.38,89.06]
[1752191042166,0.71,163.4,163.38,89.06]
[1752191043061,5.38639801,163.41,163.38,89.06]
[1752191043262,6.12639801,163.42,163.38,89.73]
[1752191043760,0.74,163.42,163.38,94.44639801]
[1752191043960,0.74,163.42,163.39,0.67]
[1752191044141,6.12639801,163.42,163.39,0.67]
[1752191044343,0.74,163.42,163.39,0.67]
[1752191044948,6.12639801,163.42,163.39,0.67]
[1752191045348,6.12639801,163.42,163.38,89.73]
[1752191046161,0.74,163.42,163.39,0.67]
[1752191046363,6.12639801,163.42,163.39,0.67]
[1752191046569,0.03,163.42,163.39,0.67]
[1752191046757,0.71,163.41,163.38,89.06]
[1752191047070,5.41639801,163.42,163.39,0.67]
[1752191047255,6.12639801,163.42,163.39,0.67]
[1752191048252,6.09639801,163.41,163.38,89.06]
[1752191048649,5.38639801,163.41,163.39,0.67]
[1752191049149,0.03,163.42,163.39,0.67]
[1752191049150,5.41639801,163.42,163.39,0.67]
[1752191049448,6.12639801,163.42,163.39,0.67]
[1752191050475,6.09639801,163.41,163.38,89.06]
[1752191050659,6.09639801,163.41,163.38,89.73]
[1752191051170,0.03,163.42,163.39,0.67]
[1752191051475,6.12639801,163.42,163.39,0.67]
[1752191051769,5.38639801,163.4,163.38,89.06]
[1752191051943,0.52053422,163.42,163.38,89.06]
[1752191051944,5.38639801,163.39,163.38,89.06]
[1752191052146,6.09639801,163.39,163.38,89.06]
[1752191052369,6.09639801,163.39,163.38,0.06]
[1752191055775,5.38639801,163.4,163.38,0.06]
[1752191055964,6.09639801,163.4,163.38,0.06]
[1752191056161,5.38639801,163.39,163.38,0.06]
[1752191056576,6.09639801,163.39,163.38,0.06]
[1752191058080,0.03,163.42,163.38,6.11639801]
[1752191058271,0.03,163.42,163.4,5.38639801]
[1752191058581,0.03,163.42,163.39,0.67]
[1752191058582,0.03,163.42,163.39,6.05639801]
[1752191058753,0.03,163.42,163.41,5.38639801]
[1752191058953,0.03,163.42,163.41,94.38639801]
[1752191059173,0.03,163.45,163.44,31.38639801]
[1752191059355,0.03,163.45,163.44,26.0]
[1752191059554,0.03,163.45,163.44,38.17485126]
[1752191059878,0.03,163.45,163.44,43.56124927]
[1752191060065,0.03,163.45,163.44,43.84557241]
[1752191062266,0.03,163.45,163.44,43.98773398]
[1752191062596,0.03,163.45,163.44,43.84557241]
[1752191063579,0.2,163.5,163.45,0.14216157]
[1752191063808,0.2,163.5,163.49,31.38639801]
[1752191063996,0.2,163.5,163.49,63.56639801]
[1752191065779,0.2,163.5,163.49,69.68298006]
[1752191066294,0.2,163.5,163.49,63.56639801]
[1752191066682,0.2,163.5,163.49,69.68298006]
[1752191066878,0.2,163.5,163.49,87.36364537]
[1752191067080,0.2,163.51,163.5,0.14216157]
[1752191067314,0.2,163.51,163.5,6.04639801]
[1752191067601,0.2,163.51,163.5,26.0]
[1752191067775,0.2,163.51,163.5,31.38639801]
[1752191067972,0.2,163.51,163.5,26.0]
[1752191068176,0.2,163.51,163.5,32.04639801]
[1752191069107,0.2,163.51,163.5,26.0]
[1752191073912,0.2,163.51,163.48,31.5]
[1752191073913,6.24639801,163.51,163.48,89.0]
[1752191074077,5.38639801,163.49,163.48,89.0]
[1752191074277,6.04639801,163.49,163.48,89.0]
[1752191075690,22.83108198,163.49,163.44,89.0]
[1752191075891,22.83108198,163.49,163.41,126.54639801]
[1752191075892,5.38639801,163.46,163.41,126.54639801]
[1752191076104,6.04639801,163.46,163.44,26.0]
[1752191076275,0.66,163.5,163.45,6.04639801]
[1752191076480,0.66,163.5,163.44,57.5]
[1752191076481,0.66,163.5,163.46,6.04639801]
[1752191076789,6.04639801,163.5,163.46,6.04639801]
[1752191077303,5.38639801,163.48,163.44,58.16]
[1752191077516,6.04639801,163.48,163.44,58.16]
[1752191077695,6.04639801,163.48,163.44,63.54639801]
[1752191077696,0.66,163.48,163.44,63.54639801]
[1752191077996,0.66,163.48,163.45,0.66]
[1752191078507,0.66,163.5,163.45,0.66]
[1752191078691,6.04639801,163.5,163.46,6.04639801]
[1752191079686,0.66,163.5,163.47,0.66]
[1752191080403,5.38639801,163.5,163.46,94.38639801]
[1752191080608,0.66,163.49,163.46,94.38639801]
[1752191081530,0.66,163.48,163.46,89.0]
[1752191081798,5.38639801,163.49,163.46,89.0]
[1752191081987,6.04639801,163.49,163.46,89.0]
[1752191082187,0.66,163.49,163.46,89.0]
[1752191082387,6.04639801,163.49,163.46,89.0]
[1752191082616,0.66,163.49,163.46,89.0]
[1752191082785,6.04639801,163.5,163.46,95.04639801]
[1752191083099,0.66,163.5,163.47,0.66]
[1752191083306,5.58639801,163.51,163.47,6.04639801]
[1752191083504,0.86,163.51,163.47,6.04639801]
[1752191083721,0.2,163.51,163.49,5.38639801]
[1752191084010,0.2,163.51,163.49,95.04639801]
[1752191084806,0.2,163.51,163.5,0.66]
[1752191086703,0.2,163.51,163.5,6.04639801]
[1752191087799,0.2,163.51,163.5,5.38639801]
[1752191088116,0.2,163.51,163.49,37.54639801]
[1752191088427,0.2,163.51,163.5,6.10639801]
[1752191091807,0.2,163.51,163.5,95.10639801]
[1752191091999,0.85,163.51,163.5,89.06]
[1752191094011,0.2,163.51,163.5,89.06]
[1752191096715,6.23639801,163.51,163.5,89.06]
[1752191097590,23.02108198,163.51,163.5,89.06]
[1752191097808,23.02108198,163.51,163.5,0.06]
[1752191101017,0.2,163.51,163.5,0.06]
[1752191101210,0.2,163.51,163.5,6.12639801]
[1752191102101,0.2,163.51,163.5,0.06]
[1752191103018,0.85,163.51,163.5,0.06]
[1752191104198,6.72693223,163.51,163.5,0.06]
[1752191104830,23.5116162,163.51,163.5,0.06]
[1752191108496,6.23639801,163.51,163.5,0.06]
[1752191110201,23.44756669,163.51,163.5,0.06]
[1752191111420,29.56340058,163.51,163.5,0.06]
[1752191112223,63.26860058,163.51,163.5,0.06]
[1752191112419,17.21116868,163.5,163.41,89.68]
[1752191112612,5.38639801,163.44,163.41,0.68]
[1752191113012,5.38639801,163.45,163.41,0.68]
[1752191113415,6.03639801,163.45,163.41,0.68]
[1752191116028,0.65,163.45,163.41,0.68]
[1752191116212,32.13,163.47,163.42,0.68]
[1752191116412,6.03639801,163.46,163.42,0.68]
[1752191117026,6.03639801,163.45,163.42,0.68]
[1752191117325,6.03639801,163.44,163.4,26.68]
[1752191117508,6.03639801,163.44,163.4,32.06639801]
[1752191118648,6.03639801,163.44,163.4,121.06639801]
[1752191118813,0.65,163.46,163.41,6.06639801]
[1752191119014,0.65,163.46,163.4,115.0]
[1752191119015,5.38639801,163.45,163.42,0.68]
[1752191119217,6.03639801,163.45,163.42,0.68]
[1752191119617,5.38639801,163.44,163.42,0.68]
[1752191120226,6.03639801,163.45,163.42,0.68]
[1752191122836,6.03639801,163.45,163.4,115.0]
[1752191123040,6.05639801,163.44,163.41,0.68]
[1752191124443,0.67,163.44,163.41,89.68]
[1752191126245,6.05639801,163.45,163.41,89.68]
[1752191128026,6.05639801,163.45,163.41,89.0]
[1752191128223,6.05639801,163.45,163.42,0.68]
[1752191129035,0.67,163.47,163.43,0.68]
[1752191129225,0.49053422,163.48,163.44,5.38639801]
[1752191129226,0.67,163.48,163.44,5.38639801]
[1752191129424,0.67,163.48,163.45,0.68]
[1752191130227,0.67,163.48,163.44,95.06639801]
[1752191130835,6.05639801,163.48,163.44,95.06639801]
[1752191131222,6.05639801,163.47,163.44,89.0]
[1752191131421,0.03,163.45,163.44,89.0]
[1752191132241,0.03,163.45,163.44,89.68]
[1752191133248,0.03,163.45,163.44,0.68]
[1752191133450,0.03,163.45,163.43,0.68]
[1752191135745,0.03,163.45,163.42,89.0]
[1752191135951,6.05639801,163.44,163.42,89.0]
[1752191136248,0.67,163.43,163.41,0.06]
[1752191137744,5.38639801,163.43,163.41,0.06]
[1752191138057,23.3316162,163.42,163.41,0.06]
[1752191140968,23.47377777,163.42,163.41,0.06]
[1752191142151,54.93377777,163.42,163.41,0.06]
[1752191143153,61.05297982,163.42,163.41,0.06]
[1752191143355,54.93377777,163.42,163.41,0.06]
[1752191144457,61.33730296,163.42,163.41,0.06]
[1752191154964,55.21810091,163.42,163.41,0.06]
[1752191155258,0.49053422,163.43,163.41,0.75]
[1752191155466,31.46,163.42,163.41,0.75]
[1752191155843,36.84639801,163.42,163.41,0.75]
[1752191156045,36.84639801,163.42,163.41,0.06]
[1752191156660,5.38639801,163.43,163.41,0.75]
[1752191156860,5.41639801,163.44,163.41,0.75]
[1752191157075,36.87639801,163.44,163.41,0.75]
[1752191157265,36.87639801,163.44,163.42,0.69]
[1752191157473,5.41639801,163.44,163.42,0.69]
[1752191157653,36.87639801,163.44,163.42,0.69]
[1752191158759,31.49,163.44,163.42,0.69]
[1752191158967,36.87639801,163.44,163.42,0.69]
[1752191160469,36.87639801,163.44,163.41,0.06]
[1752191160657,22.17108198,163.42,163.41,0.06]
[1752191160861,54.54810091,163.42,163.41,0.06]
[1752191161164,55.24810091,163.42,163.41,0.06]
[1752191162073,43.21116868,163.39,163.38,0.06]
[1752191162375,80.54810091,163.39,163.38,0.06]
[1752191162558,86.66842651,163.39,163.38,0.06]
[1752191162762,87.36842651,163.39,163.38,0.06]
[1752191164956,81.9820285,163.39,163.38,0.06]
[1752191165172,87.36842651,163.39,163.38,0.06]
[1752191166073,92.75482452,163.39,163.38,0.06]
[1752191166283,0.28432314,163.37,163.33,0.1]
[1752191166455,22.31324355,163.34,163.33,0.1]
[1752191166655,54.47324355,163.34,163.33,0.1]
[1752191168278,53.77324355,163.34,163.33,0.1]
[1752191168661,48.38684554,163.34,163.33,0.1]
[1752191168858,5.38639801,163.34,163.33,0.79]
[1752191169079,36.84639801,163.34,163.33,0.79]
[1752191169376,5.38639801,163.34,163.33,0.79]
[1752191170171,36.84639801,163.36,163.33,0.79]
[1752191171181,5.38639801,163.36,163.33,0.79]
[1752191171385,5.38639801,163.36,163.34,0.69]
[1752191172985,5.38639801,163.36,163.35,0.69]
[1752191173680,5.38639801,163.36,163.34,0.69]
[1752191174074,5.38639801,163.36,163.35,0.69]
[1752191174482,5.38639801,163.37,163.35,0.69]
[1752191174660,36.84639801,163.37,163.35,0.69]
[1752191175063,5.38639801,163.37,163.35,0.69]
[1752191175268,5.38639801,163.36,163.35,0.69]
[1752191176674,36.84639801,163.37,163.35,0.69]
[1752191177188,5.38639801,163.37,163.35,0.69]
[1752191177374,36.84639801,163.37,163.35,0.69]
[1752191177776,36.84639801,163.37,163.34,0.06]
[1752191178283,36.84639801,163.37,163.34,0.75]
[1752191179270,5.38639801,163.36,163.34,0.75]
[1752191180194,32.16,163.37,163.34,0.75]
[1752191180375,5.38639801,163.36,163.34,0.75]
[1752191181884,31.46,163.37,163.35,0.69]
[1752191182075,37.33693223,163.38,163.36,0.71]
[1752191182283,37.33693223,163.38,163.34,0.06]
[1752191182284,5.38639801,163.37,163.34,0.77]
[1752191182462,5.38639801,163.37,163.34,0.06]
[1752191182788,5.38639801,163.37,163.34,0.77]
[1752191182990,5.38639801,163.37,163.35,0.71]
[1752191183168,0.49053422,163.38,163.36,0.71]
[1752191183369,31.44,163.38,163.37,0.71]
[1752191184484,5.38639801,163.41,163.37,0.71]
[1752191184785,0.52053422,163.42,163.38,5.38639801]
[1752191184984,38.00693223,163.42,163.39,0.71]
[1752191185763,5.90693223,163.42,163.4,0.71]
[1752191186177,5.90693223,163.42,163.39,0.71]
[1752191187880,5.90693223,163.42,163.37,5.38639801]
[1752191188080,0.03,163.42,163.4,0.71]
[1752191188692,6.07639801,163.42,163.38,0.71]
[1752191188994,0.03,163.42,163.38,0.71]
[1752191189294,0.03,163.42,163.36,89.0]
[1752191189295,5.38639801,163.39,163.36,89.0]
[1752191189471,6.04639801,163.38,163.34,0.77]
[1752191189672,5.38639801,163.37,163.34,0.77]
[1752191189973,6.04639801,163.37,163.34,0.77]
[1752191190764,5.38639801,163.35,163.34,0.06]
[1752191190965,6.04639801,163.35,163.34,0.06]
[1752191191372,5.38639801,163.35,163.34,0.06]
[1752191192397,6.04639801,163.35,163.34,0.06]
[1752191194510,5.38639801,163.35,163.34,0.06]
[1752191194697,6.04639801,163.35,163.34,0.06]
[1752191196594,22.97324355,163.35,163.34,0.06]
[1752191197301,29.37939099,163.35,163.34,0.06]
[1752191197680,23.25756669,163.35,163.34,0.06]
[1752191200794,43.21116868,163.34,163.29,0.1]
[1752191200985,22.31324355,163.3,163.29,0.1]
[1752191201184,54.24377777,163.3,163.29,0.1]
[1752191201382,54.90377777,163.3,163.29,0.1]
[1752191202401,55.18810091,163.3,163.29,0.1]
[1752191205698,54.90377777,163.3,163.29,0.1]
[1752191220096,49.51737976,163.3,163.29,0.1]
[1752191220296,54.90377777,163.3,163.29,0.1]
[1752191222213,55.18810091,163.3,163.29,0.1]
[1752191223604,61.31179962,163.3,163.29,0.1]
[1752191224214,55.18810091,163.3,163.29,0.1]
[1752191224414,61.31179962,163.3,163.29,0.1]
[1752191225116,55.18810091,163.3,163.29,0.1]
[1752191226518,61.31179962,163.3,163.29,0.1]
[1752191228023,55.18810091,163.3,163.29,0.1]
[1752191230221,49.1217029,163.3,163.29,0.1]
[1752191230402,23.08810091,163.3,163.29,0.1]
[1752191230602,54.22377777,163.3,163.29,0.1]
[1752191231308,0.49053422,163.3,163.29,0.76]
[1752191231506,31.42,163.3,163.29,0.76]
[1752191231701,16.78468397,163.32,163.29,0.76]
[1752191231906,31.42,163.31,163.29,0.76]
[1752191232422,31.42,163.32,163.29,6.14639801]
[1752191232634,48.69521819,163.33,163.3,0.66]
[1752191233715,5.41639801,163.34,163.3,6.04639801]
[1752191233914,16.81468397,163.34,163.3,5.38639801]
[1752191234116,16.81468397,163.34,163.31,6.04639801]
[1752191234317,48.23468397,163.34,163.32,0.66]
[1752191235329,0.03,163.34,163.32,0.66]
[1752191236330,0.03,163.34,163.33,0.66]
[1752191237037,5.41639801,163.34,163.33,0.66]
[1752191238531,5.41639801,163.34,163.32,0.66]
[1752191240022,0.03,163.34,163.32,0.66]
[1752191240226,5.41639801,163.34,163.32,0.66]
[1752191244619,5.41639801,163.34,163.33,0.72]
[1752191245735,0.03,163.34,163.33,0.72]
[1752191248018,5.41639801,163.34,163.33,0.72]
[1752191248942,0.03,163.34,163.33,0.72]
[1752191256942,0.03,163.34,163.33,6.10639801]
[1752191259343,0.03,163.34,163.33,0.72]
[1752191259542,0.03,163.34,163.32,95.10639801]
[1752191259752,0.03,163.34,163.33,0.72]
[1752191260429,16.78468397,163.33,163.31,0.06]
[1752191260628,0.72,163.32,163.31,0.06]
[1752191261056,22.89108198,163.32,163.31,0.06]
[1752191261232,17.50468397,163.32,163.31,0.06]
[1752191261553,16.78468397,163.32,163.31,0.06]
[1752191262136,5.90693223,163.34,163.31,0.78]
[1752191262351,0.03,163.34,163.31,0.78]
[1752191263262,0.03,163.34,163.31,32.16639801]
[1752191263430,0.03,163.34,163.33,5.38639801]
[1752191263956,0.03,163.34,163.33,6.10639801]
[1752191267324,0.03,163.34,163.33,0.72]
[1752191267526,0.03,163.34,163.33,6.10639801]
[1752191269031,0.03,163.34,163.33,12.22897194]
[1752191269248,0.03,163.34,163.33,6.84257393]
[1752191269446,0.03,163.34,163.33,132.60897194]
[1752191272154,0.03,163.34,163.33,127.22257393]
[1752191272472,0.03,163.34,163.33,132.60897194]
[1752191273358,0.03,163.34,163.33,126.48639801]
[1752191274359,0.03,163.38,163.36,26.0]
[1752191274567,0.74,163.38,163.36,26.0]
[1752191276137,0.74,163.38,163.35,6.05639801]
[1752191277158,0.03,163.38,163.35,6.05639801]
[1752191277460,0.03,163.38,163.36,5.38639801]
[1752191277645,0.03,163.38,163.36,6.05639801]
[1752191278151,0.74,163.38,163.36,5.38639801]
[1752191280375,0.03,163.38,163.36,6.05639801]
[1752191282573,0.03,163.38,163.37,6.05639801]
[1752191282868,0.03,163.42,163.4,26.0]
[1752191283061,0.03,163.42,163.41,5.38639801]
[1752191283370,0.03,163.42,163.41,6.05639801]
[1752191284545,0.03,163.42,163.41,101.17597453]
[1752191284764,0.03,163.44,163.43,26.0]
[1752191285054,0.03,163.44,163.43,68.11279602]
[1752191285264,0.03,163.44,163.43,68.78279602]
[1752191285870,0.03,163.44,163.43,157.78279602]
[1752191287055,0.03,163.44,163.43,163.90162365]
[1752191287485,0.03,163.44,163.43,158.51522564]
[1752191287863,0.03,163.44,163.43,152.39639801]
[1752191288065,0.03,163.44,163.43,121.05639801]
[1752191288272,0.03,163.44,163.43,120.38639801]
[1752191288576,0.03,163.44,163.43,121.05639801]
[1752191290055,0.03,163.44,163.43,32.05639801]
[1752191290982,0.03,163.44,163.43,26.67]
[1752191291175,0.03,163.44,163.43,32.05639801]
[1752191292160,0.03,163.44,163.43,38.17522564]
[1752191292366,0.03,163.44,163.43,32.05639801]
[1752191293268,0.03,163.44,163.43,38.17522564]
[1752191293884,0.03,163.44,163.43,32.05639801]
[1752191295986,0.03,163.44,163.43,121.05639801]
[1752191296489,0.03,163.44,163.43,115.67]
[1752191296784,0.03,163.44,163.43,121.05639801]
[1752191301994,0.03,163.44,163.43,32.05639801]
[1752191302892,0.03,163.44,163.43,31.38639801]
[1752191303064,0.03,163.44,163.43,32.04639801]
[1752191305689,0.03,163.44,163.43,31.38639801]
[1752191305990,22.86478397,163.43,163.36,5.44639801]
[1752191306168,0.72,163.42,163.37,36.70639801]
[1752191306490,6.10639801,163.42,163.38,5.38639801]
[1752191306690,0.72,163.41,163.38,5.38639801]
[1752191309074,0.72,163.41,163.38,6.04639801]
[1752191310995,0.72,163.41,163.38,95.04639801]
[1752191312304,0.72,163.41,163.39,5.38639801]
[1752191314104,6.8001,163.43,163.4,5.38639801]
[1752191314405,0.03,163.44,163.42,5.38639801]
[1752191314703,0.03,163.44,163.43,5.38639801]
[1752191319298,0.03,163.44,163.43,6.04639801]
[1752191319809,0.03,163.44,163.43,95.04639801]
[1752191319984,0.03,163.44,163.43,94.38639801]
[1752191321293,0.03,163.44,163.43,89.0]
[1752191321481,0.03,163.44,163.43,94.38639801]
[1752191322124,0.03,163.44,163.43,89.0]
[1752191323000,0.03,163.44,163.43,94.38639801]
[1752191324186,0.03,163.44,163.43,89.0]
[1752191324387,0.03,163.44,163.43,94.38639801]
[1752191324596,0.03,163.44,163.43,89.0]
[1752191324797,0.03,163.44,163.43,94.38639801]
[1752191326007,0.03,163.44,163.43,95.04639801]
[1752191326212,0.03,163.44,163.43,74.85162365]
[1752191326917,0.03,163.44,163.43,69.46522564]
[1752191328406,0.03,163.44,163.43,43.46522564]
[1752191328985,0.03,163.45,163.43,43.46522564]
[1752191329312,0.03,163.45,163.44,32.04639801]
[1752191329492,0.03,163.45,163.44,127.16485126]
[1752191329686,0.03,163.45,163.44,121.04639801]
[1752191329894,0.75,163.45,163.44,115.0]
[1752191330395,0.03,163.45,163.44,120.38639801]
[1752191330790,0.03,163.45,163.44,121.04639801]
[1752191331198,0.03,163.45,163.44,158.44485126]
[1752191331809,0.03,163.45,163.44,146.94]
[1752191332009,0.03,163.45,163.44,152.32639801]
[1752191332397,0.03,163.45,163.44,158.44485126]
[1752191333801,0.03,163.45,163.44,132.44485126]
[1752191334987,0.03,163.45,163.44,137.83124927]
[1752191335303,0.2,163.5,163.47,26.0]
[1752191335500,0.2,163.5,163.49,5.38639801]
[1752191336799,0.2,163.5,163.49,6.10639801]
[1752191337407,0.2,163.5,163.49,12.22298006]
[1752191338701,0.2,163.5,163.49,101.22298006]
[1752191339006,0.2,163.5,163.49,101.83463826]
[1752191340425,0.2,163.5,163.49,101.22298006]
[1752191340718,0.2,163.5,163.49,151.66639801]
[1752191340907,0.2,163.5,163.49,158.50298006]
[1752191341232,0.2,163.5,163.49,132.50298006]
[1752191349307,0.2,163.51,163.5,99.85711916]
[1752191349507,0.2,163.51,163.5,95.80234194]